fUST/lending_fUST_20250606
["ID","MTS","AMOUNT","RATE_DAILY","PERIOD"]
[364594843,1749154685432,273.51305229,0.00019486,2]
[364594844,1749154686790,440.0,0.00019212,2]
[364594845,1749154687075,440.0,0.00019486,2]
[364594846,1749154687397,410.0,0.0001976,2]
[364594847,1749154687850,420.0,0.00019212,2]
[364594849,1749154689272,430.0,0.00019212,2]
[364594850,1749154692961,440.0,0.00019212,2]
[364594851,1749154693210,440.0,0.00019486,2]
[364594852,1749154693641,440.0,0.0001976,2]
[364594853,1749154695317,430.0,0.00019212,2]
[364594854,1749154695923,430.0,0.00019212,2]
[364594855,1749154697985,150.0,0.0001642,2]
[364594856,1749154698232,430.0,0.00019212,2]
[364594857,1749154698482,150.0,0.00017201,2]
[364594858,1749154699024,150.0,0.00017983,2]
[364594859,1749154699533,150.0,0.00018765,2]
[364594860,1749154700102,150.0,0.00019547,2]
[364594861,1749154700274,430.0,0.00019212,2]
[364594862,1749154700567,430.0,0.00019212,2]
[364594863,1749154704145,430.0,0.00019212,2]
[364594864,1749154704204,372.70211075,0.00019212,2]
[364594865,1749154704239,440.0,0.00019212,2]
[364594866,1749154706130,430.0,0.00019212,2]
[364594867,1749154708070,420.0,0.00019212,2]
[364594868,1749154708127,440.0,0.00019212,2]
[364594869,1749154708398,440.0,0.00019486,2]
[364594870,1749154711289,440.0,0.00019212,2]
[364594871,1749154711480,431.86204897,0.00019212,2]
[364594872,1749154711584,397.59634751,0.00019486,2]
[364594873,1749154718849,440.0,0.00019212,2]
[364594874,1749154719091,329.98,0.00019486,2]
[364594875,1749154719708,440.0,0.00019212,2]
[364594876,1749154720320,430.0,0.00019486,2]
[364594877,1749154722574,437.56840292,0.00019212,2]
[364594878,1749154722951,440.0,0.00019212,2]
[364594879,1749154725738,440.0,0.00019212,2]
[364594880,1749154726002,440.0,0.00019486,2]
[364594881,1749154726269,440.0,0.0001976,2]
[364594882,1749154726896,430.0,0.00019212,2]
[364594883,1749154729069,440.0,0.00019212,2]
[364594884,1749154729332,420.0,0.00019486,2]
[364594885,1749154731379,430.0,0.00019212,2]
[364594886,1749154738486,443.59,0.00019212,2]
[364594887,1749154749885,440.0,0.00019212,2]
[364594888,1749154751949,206.59757773,0.00019212,2]
[364594889,1749154758548,440.0,0.00019212,2]
[364594890,1749154758814,370.0,0.00019486,2]
[364594891,1749154764784,440.0,0.00019212,2]
[364594892,1749154769521,150.0,0.00016471,2]
[364594893,1749154770038,150.0,0.00017255,2]
[364594894,1749154770531,150.0,0.00018039,2]
[364594895,1749154771010,150.0,0.00018823,2]
[364594896,1749154771549,440.0,0.00019212,2]
[364594897,1749154793567,541.7,0.00019212,2]
[364594898,1749154795339,440.0,0.00019212,2]
[364594899,1749154795590,180.5,0.00019486,2]
[364594900,1749154801361,440.0,0.00019212,2]
[364594901,1749154801635,440.0,0.00019486,2]
[364594902,1749154805767,440.0,0.00019212,2]
[364594903,1749154805982,440.0,0.00019486,2]
[364594904,1749154806067,155.24269048,0.00019934,2]
[364594905,1749154815599,506.69822404,0.00019212,2]
[364594906,1749154817934,430.0,0.00019212,2]
[364594907,1749154819935,440.0,0.00019212,2]
[364594908,1749154820186,420.0,0.00019486,2]
[364594909,1749154840300,430.0,0.00019212,2]
[364594910,1749154846580,500.0,0.00019212,2]
[364594911,1749154846858,500.0,0.00019486,2]
[364594912,1749154847844,440.0,0.00019212,2]
[364594913,1749154848127,440.0,0.00019486,2]
[364594914,1749154848824,440.0,0.00019212,2]
[364594915,1749154849123,440.0,0.00019486,2]
[364594916,1749154849367,420.0,0.0001976,2]
[364594917,1749154850197,423.90257549,0.00019212,2]
[364594918,1749154853067,440.0,0.00019212,2]
[364594919,1749154853306,440.0,0.00019486,2]
[364594920,1749154853559,440.0,0.0001976,2]
[364594921,1749154854438,422.18019168,0.00019212,2]
[364594922,1749154857043,440.0,0.00019212,2]
[364594923,1749154857294,440.0,0.00019486,2]
[364594924,1749154859214,151.0,0.000194,2]
[364594925,1749154860996,440.0,0.00019212,2]
[364594926,1749154861282,440.0,0.00019486,2]
[364594927,1749154861539,350.0,0.0001976,2]
[364594928,1749154863307,440.0,0.00019212,2]
[364594929,1749154863897,420.0,0.00019486,2]
[364594930,1749154877847,440.0,0.00019212,2]
[364594931,1749154878129,440.0,0.00019486,2]
[364594932,1749154878430,440.0,0.0001976,2]
[364594933,1749154880246,308.84022836,0.00018632,2]
[364594934,1749154897581,440.0,0.00019212,2]
[364594935,1749154897842,440.0,0.00019486,2]
[364594936,1749154898109,400.0,0.0001976,2]
[364594937,1749154905793,440.0,0.00019212,2]
[364594938,1749154906040,440.0,0.00019486,2]
[364594939,1749154906302,440.0,0.0001976,2]
[364594940,1749154916447,401.32539426,0.00019212,2]
[364594941,1749154935164,440.0,0.00019212,2]
[364594942,1749154935547,440.0,0.00019486,2]
[364594943,1749154935818,440.0,0.0001976,2]
[364594944,1749154953819,430.0,0.00019212,2]
[364594945,1749154964417,440.0,0.00019212,2]
[364594946,1749154964687,440.0,0.00019486,2]
[364594947,1749154966806,197.29747007,0.00019212,2]
[364594948,1749154979376,430.0,0.00019212,2]
[364594949,1749155003276,430.0,0.00019212,2]
[364594950,1749155005521,440.0,0.00019212,2]
[364594951,1749155005784,440.0,0.00019486,2]
[364594952,1749155023506,440.0,0.00019212,2]
[364594953,1749155023769,440.0,0.00019486,2]
[364594954,1749155024041,440.0,0.0001976,2]
[364594955,1749155026867,440.0,0.00019212,2]
[364594956,1749155027124,440.0,0.00019486,2]
[364594957,1749155027373,440.0,0.0001976,2]
[364594958,1749155032592,420.0,0.00019212,2]
[364594959,1749155045168,6887.85285212,0.00019342,2]
[364594960,1749155045196,18012.14714788,0.00019342,2]
[364594961,1749155069578,551.08243875,0.00019212,2]
[364594962,1749155071552,322.23645298,0.00019212,2]
[364594963,1749155097705,430.0,0.00019212,2]
[364594967,1749155136141,430.0,0.00019212,2]
[364594968,1749155143503,440.0,0.00019212,2]
[364594969,1749155149584,440.0,0.00019212,2]
[364594970,1749155168213,165.932499,0.00013699,2]
[364594971,1749155173521,440.0,0.00019212,2]
[364594973,1749155179547,440.0,0.00019212,2]
[364594974,1749155181581,440.0,0.00019212,2]
[364594975,1749155182195,231.63017127,0.00019032,2]
[364594976,1749155202265,440.0,0.00019212,2]
[364594977,1749155202448,430.0,0.00019486,2]
[364594978,1749155212851,440.0,0.00019212,2]
[364594979,1749155228965,440.0,0.00019212,2]
[364594980,1749155229244,430.0,0.00019486,2]
[364594981,1749155233151,-228.15208461,0.00020032,2]
[364594982,1749155235286,440.0,0.00019212,2]
[364594983,1749155240137,440.0,0.00019212,2]
[364594984,1749155252893,440.0,0.00019212,2]
[364594985,1749155253241,226.46952972,0.00019486,2]
[364594986,1749155255128,450.0,0.00019212,2]
[364594987,1749155266600,440.0,0.00019212,2]
[364594988,1749155266866,440.0,0.00019486,2]
[364594990,1749155270747,440.0,0.00019212,2]
[364594992,1749155296393,11296.98165993,0.000125,2]
[364594993,1749155300483,9769.13206356,0.0002,2]
[364594994,1749155310577,280.58622724,0.0001,2]
[364594997,1749155319833,576.34340922,0.000149,2]
[364594999,1749155322955,386.35378357,0.0002,2]
[364595000,1749155323669,2581.05378355,0.00015,2]
[364595001,1749155323693,9552.57073046,0.00015,2]
[364595003,1749155325764,14866.3329079,0.0001,2]
[364595007,1749155348126,-71.84791539,0.00020032,2]
[364595008,1749155348147,-226.24,0.00020033,2]
[364595009,1749155348167,-1200.0,0.00020033,2]
[364595010,1749155348188,-300.0,0.00020033,2]
[364595011,1749155348209,-300.0,0.00020033,2]
[364595012,1749155348229,-842.5625,0.00020034,2]
[364595013,1749155348249,-12675.11581177,0.00020034,2]
[364595014,1749155348271,-160.0,0.00020034,2]
[364595015,1749155348292,-229.48950782,0.00020034,2]
[364595016,1749155348312,-50000.0,0.00020034,2]
[364595017,1749155348333,-440.0,0.00020034,2]
[364595018,1749155348355,-440.0,0.00020034,2]
[364595019,1749155348390,-174.7453477,0.00020034,2]
[364595020,1749155348411,-165.932499,0.00020187,2]
[364595021,1749155348433,-380.0,0.00020308,2]
[364595022,1749155348454,-150.0,0.00020329,2]
[364595023,1749155348474,-500.0,0.00020488,2]
[364595024,1749155348493,-543.41,0.00020571,3]
[364595025,1749155348515,-315.75,0.00020571,3]
[364595026,1749155348536,-473.65,0.00020571,3]
[364595027,1749155348556,-1663.53,0.00020571,10]
[364595028,1749155348575,-1386.28,0.00020571,10]
[364595029,1749155348595,-1155.23,0.00020571,10]
[364595030,1749155348615,-430.0,0.00020581,2]
[364595031,1749155348635,-390.0,0.00020581,2]
[364595032,1749155348654,-392.09651185,0.00020581,2]
[364595033,1749155348675,-430.0,0.00020581,2]
[364595034,1749155348696,-430.0,0.00020581,2]
[364595035,1749155348715,-430.0,0.00020581,2]
[364595036,1749155348735,-440.0,0.00020581,2]
[364595037,1749155348754,-430.0,0.00020581,2]
[364595038,1749155348773,-430.0,0.00020581,2]
[364595039,1749155348792,-430.0,0.00020581,2]
[364595040,1749155348811,-440.0,0.00020581,2]
[364595041,1749155348831,-430.0,0.00020581,2]
[364595042,1749155348855,-440.0,0.00020581,2]
[364595043,1749155348875,-430.0,0.00020581,2]
[364595044,1749155348895,-430.0,0.00020581,2]
[364595045,1749155348916,-430.0,0.00020581,2]
[364595046,1749155348936,-430.0,0.00020581,2]
[364595047,1749155348956,-430.0,0.00020581,2]
[364595048,1749155348976,-430.0,0.00020581,2]
[364595049,1749155348996,-430.0,0.00020581,2]
[364595050,1749155349020,-440.0,0.00020581,2]
[364595051,1749155349041,-440.0,0.00020581,2]
[364595052,1749155349061,-430.0,0.00020581,2]
[364595053,1749155349082,-430.0,0.00020581,2]
[364595054,1749155349102,-440.0,0.00020581,2]
[364595055,1749155349121,-345.93090145,0.00020581,2]
[364595056,1749155349141,-430.0,0.00020581,2]
[364595057,1749155349160,-440.0,0.00020581,2]
[364595058,1749155349183,-430.0,0.00020581,2]
[364595059,1749155349203,-430.0,0.00020581,2]
[364595060,1749155349224,-430.0,0.00020581,2]
[364595061,1749155349243,-440.0,0.00020581,2]
[364595062,1749155349266,-430.87999429,0.00020581,2]
[364595063,1749155349286,-430.0,0.00020581,2]
[364595064,1749155349306,-440.0,0.00020581,2]
[364595065,1749155349326,-430.0,0.00020581,2]
[364595066,1749155349346,-440.0,0.00020581,2]
[364595067,1749155349368,-430.0,0.00020581,2]
[364595068,1749155349388,-440.0,0.00020581,2]
[364595069,1749155349410,-430.0,0.00020581,2]
[364595070,1749155349436,-440.0,0.00020581,2]
[364595071,1749155349457,-440.0,0.00020581,2]
[364595072,1749155349477,-440.0,0.00020581,2]
[364595073,1749155349498,-430.0,0.00020581,2]
[364595074,1749155349519,-440.0,0.00020581,2]
[364595075,1749155349539,-440.0,0.00020581,2]
[364595076,1749155349559,-430.0,0.00020581,2]
[364595077,1749155349579,-430.0,0.00020581,2]
[364595078,1749155349602,-177.43383421,0.00020581,2]
[364595079,1749155349622,-440.0,0.00020581,2]
[364595080,1749155349648,-440.0,0.00020581,2]
[364595081,1749155349668,-430.0,0.00020581,2]
[364595082,1749155349694,-430.0,0.00020581,2]
[364595083,1749155349718,-440.0,0.00020581,2]
[364595084,1749155349739,-440.0,0.00020581,2]
[364595085,1749155349760,-440.0,0.00020581,2]
[364595086,1749155349780,-440.0,0.00020581,2]
[364595087,1749155349800,-440.0,0.00020581,2]
[364595088,1749155349823,-430.0,0.00020581,2]
[364595089,1749155349845,-440.0,0.00020581,2]
[364595090,1749155349867,-440.0,0.00020581,2]
[364595091,1749155349887,-430.0,0.00020581,2]
[364595092,1749155349908,-440.0,0.00020581,2]
[364595093,1749155349931,-440.0,0.00020581,2]
[364595094,1749155349952,-400.63332418,0.00020581,2]
[364595095,1749155349973,-430.0,0.00020581,2]
[364595096,1749155349994,-440.0,0.00020581,2]
[364595097,1749155350015,-430.0,0.00020581,2]
[364595098,1749155350037,-430.0,0.00020581,2]
[364595099,1749155350058,-430.0,0.00020581,2]
[364595100,1749155350083,-440.0,0.00020581,2]
[364595101,1749155350104,-178.33642355,0.00020581,2]
[364595102,1749155350126,-430.0,0.00020581,2]
[364595103,1749155350147,-440.0,0.00020581,2]
[364595104,1749155350168,-505.21136589,0.00020581,2]
[364595105,1749155350193,-440.0,0.00020581,2]
[364595106,1749155350214,-440.0,0.00020581,2]
[364595107,1749155350235,-435.16239462,0.00020581,2]
[364595108,1749155350256,-401.09908079,0.00020581,2]
[364595109,1749155350277,-440.0,0.00020581,2]
[364595110,1749155350297,-406.44319564,0.00020581,2]
[364595111,1749155350318,-440.0,0.00020581,2]
[364595112,1749155350339,-400.0,0.00020581,2]
[364595113,1749155350362,-430.0,0.00020581,2]
[364595114,1749155350382,-546.38817284,0.00020581,2]
[364595115,1749155350403,-440.0,0.00020581,2]
[364595116,1749155350428,-440.0,0.00020581,2]
[364595117,1749155350452,-440.0,0.00020581,2]
[364595118,1749155350472,-440.0,0.00020581,2]
[364595119,1749155350493,-430.0,0.00020581,2]
[364595120,1749155350514,-300.0,0.00020581,2]
[364595121,1749155350534,-440.0,0.00020581,2]
[364595122,1749155350682,-250.0,0.00020581,2]
[364595123,1749155350705,-430.0,0.00020581,2]
[364595124,1749155350727,-440.0,0.00020581,2]
[364595125,1749155350747,-440.0,0.00020581,2]
[364595126,1749155350768,-440.0,0.00020581,2]
[364595127,1749155350787,-442.11988887,0.00020581,2]
[364595128,1749155350807,-440.0,0.00020581,2]
[364595129,1749155350826,-440.0,0.00020581,2]
[364595130,1749155350846,-440.0,0.00020581,2]
[364595131,1749155350866,-440.0,0.00020581,2]
[364595132,1749155350887,-440.0,0.00020581,2]
[364595133,1749155350906,-440.0,0.00020581,2]
[364595134,1749155350926,-440.0,0.00020581,2]
[364595135,1749155350947,-281.07240354,0.00020581,2]
[364595136,1749155350966,-440.0,0.00020581,2]
[364595137,1749155350986,-430.0,0.00020581,2]
[364595138,1749155351005,-504.27314778,0.00020581,2]
[364595139,1749155351025,-350.18798946,0.00020581,2]
[364595140,1749155351045,-440.0,0.00020581,2]
[364595141,1749155351065,-440.0,0.00020581,2]
[364595142,1749155351085,-440.0,0.00020581,2]
[364595143,1749155351105,-430.0,0.00020581,2]
[364595144,1749155351124,-450.0,0.00020581,2]
[364595145,1749155351144,-430.0,0.00020581,2]
[364595146,1749155351165,-430.0,0.00020581,2]
[364595147,1749155351187,-430.0,0.00020581,2]
[364595148,1749155351207,-440.0,0.00020581,2]
[364595149,1749155351227,-430.0,0.00020581,2]
[364595150,1749155351246,-440.0,0.00020581,2]
[364595151,1749155351266,-430.0,0.00020581,2]
[364595152,1749155351286,-559.39795049,0.00020581,2]
[364595153,1749155351307,-500.0,0.00020581,2]
[364595154,1749155351326,-440.0,0.00020581,2]
[364595155,1749155351347,-440.0,0.00020581,2]
[364595156,1749155351372,-430.86590218,0.00020581,2]
[364595157,1749155351392,-338.755003,0.00020581,2]
[364595158,1749155351412,-439.2211437,0.00020581,2]
[364595159,1749155351436,-440.0,0.00020581,2]
[364595160,1749155351460,-420.0,0.00020581,2]
[364595161,1749155351483,-440.0,0.00020581,2]
[364595162,1749155351505,-430.0,0.00020581,2]
[364595163,1749155351527,-440.0,0.00020581,2]
[364595164,1749155351550,-440.0,0.00020581,2]
[364595165,1749155351572,-430.0,0.00020581,2]
[364595166,1749155351593,-500.0,0.00020581,2]
[364595167,1749155351614,-430.0,0.00020581,2]
[364595168,1749155351635,-440.0,0.00020581,2]
[364595169,1749155351655,-430.0,0.00020581,2]
[364595170,1749155351676,-488.7955054,0.00020581,2]
[364595171,1749155351702,-430.0,0.00020581,2]
[364595172,1749155351723,-430.0,0.00020581,2]
[364595173,1749155351742,-440.0,0.00020581,2]
[364595174,1749155351763,-440.0,0.00020581,2]
[364595175,1749155351782,-430.0,0.00020581,2]
[364595176,1749155351803,-440.0,0.00020581,2]
[364595177,1749155351823,-430.40271475,0.00020581,2]
[364595178,1749155351845,-430.0,0.00020581,2]
[364595179,1749155351865,-430.0,0.00020581,2]
[364595180,1749155351886,-430.0,0.00020581,2]
[364595181,1749155351906,-440.0,0.00020581,2]
[364595182,1749155351925,-440.0,0.00020581,2]
[364595183,1749155351949,-440.0,0.00020581,2]
[364595184,1749155351969,-381.2055755,0.00020581,2]
[364595185,1749155351989,-430.0,0.00020581,2]
[364595186,1749155352011,-440.0,0.00020581,2]
[364595187,1749155352032,-430.0,0.00020581,2]
[364595188,1749155352054,-440.0,0.00020581,2]
[364595189,1749155352075,-440.0,0.00020581,2]
[364595190,1749155352096,-440.0,0.00020581,2]
[364595191,1749155352121,-440.0,0.00020581,2]
[364595192,1749155352141,-430.0,0.00020581,2]
[364595193,1749155352163,-440.0,0.00020581,2]
[364595194,1749155352190,-440.0,0.00020581,2]
[364595195,1749155352209,-430.0,0.00020581,2]
[364595196,1749155352229,-440.0,0.00020581,2]
[364595197,1749155352250,-440.0,0.00020581,2]
[364595198,1749155352275,-430.0,0.00020581,2]
[364595199,1749155352300,-440.0,0.00020581,2]
[364595200,1749155352320,-440.0,0.00020581,2]
[364595201,1749155352342,-440.0,0.00020581,2]
[364595202,1749155352367,-440.0,0.00020581,2]
[364595203,1749155352386,-568.96459367,0.00020581,2]
[364595204,1749155352408,-440.0,0.00020581,2]
[364595205,1749155352428,-440.0,0.00020581,2]
[364595206,1749155352452,-440.0,0.00020581,2]
[364595207,1749155352471,-440.0,0.00020581,2]
[364595208,1749155352492,-440.0,0.00020581,2]
[364595209,1749155352511,-440.0,0.00020581,2]
[364595210,1749155352531,-430.0,0.00020581,2]
[364595211,1749155352551,-440.0,0.00020581,2]
[364595212,1749155352572,-440.0,0.00020581,2]
[364595213,1749155352591,-440.0,0.00020581,2]
[364595214,1749155352613,-440.0,0.00020581,2]
[364595215,1749155352634,-440.0,0.00020581,2]
[364595216,1749155352656,-440.0,0.00020581,2]
[364595217,1749155352675,-440.0,0.00020581,2]
[364595218,1749155352701,-440.0,0.00020581,2]
[364595219,1749155352722,-440.0,0.00020581,2]
[364595220,1749155352744,-440.0,0.00020581,2]
[364595221,1749155352763,-430.0,0.00020581,2]
[364595222,1749155352782,-440.0,0.00020581,2]
[364595223,1749155352801,-440.0,0.00020581,2]
[364595224,1749155352822,-440.0,0.00020581,2]
[364595225,1749155352844,-430.0,0.00020581,2]
[364595226,1749155352864,-440.0,0.00020581,2]
[364595227,1749155352883,-440.0,0.00020581,2]
[364595228,1749155352904,-440.0,0.00020581,2]
[364595229,1749155352923,-440.0,0.00020581,2]
[364595230,1749155352948,-440.0,0.00020581,2]
[364595231,1749155352968,-440.0,0.00020581,2]
[364595232,1749155352990,-500.0,0.00020581,2]
[364595233,1749155353010,-440.0,0.00020581,2]
[364595234,1749155353030,-430.0,0.00020581,2]
[364595235,1749155353051,-440.0,0.00020581,2]
[364595236,1749155353072,-440.0,0.00020581,2]
[364595237,1749155353092,-440.0,0.00020581,2]
[364595238,1749155353114,-440.0,0.00020581,2]
[364595239,1749155353134,-440.0,0.00020581,2]
[364595240,1749155353155,-440.0,0.00020581,2]
[364595241,1749155353175,-440.0,0.00020581,2]
[364595242,1749155353199,-522.03109554,0.00020581,2]
[364595243,1749155353219,-440.0,0.00020581,2]
[364595244,1749155353241,-440.0,0.00020581,2]
[364595245,1749155353262,-440.0,0.00020581,2]
[364595246,1749155353282,-402.54168944,0.00020581,2]
[364595247,1749155353302,-440.0,0.00020581,2]
[364595248,1749155353321,-440.0,0.00020581,2]
[364595249,1749155353342,-440.0,0.00020581,2]
[364595250,1749155353363,-440.0,0.00020581,2]
[364595251,1749155353386,-440.0,0.00020581,2]
[364595252,1749155353405,-354.22252767,0.00020581,2]
[364595253,1749155353426,-440.0,0.00020581,2]
[364595254,1749155353450,-440.0,0.00020581,2]
[364595255,1749155353574,-440.0,0.00020581,2]
[364595256,1749155353596,-440.0,0.00020581,2]
[364595257,1749155353616,-440.0,0.00020581,2]
[364595258,1749155353636,-440.0,0.00020581,2]
[364595259,1749155353657,-440.0,0.00020581,2]
[364595260,1749155353680,-430.0,0.00020581,2]
[364595261,1749155353701,-440.0,0.00020581,2]
[364595262,1749155353720,-430.0,0.00020581,2]
[364595263,1749155353739,-430.0,0.00020581,2]
[364595264,1749155353760,-440.0,0.00020581,2]
[364595265,1749155353782,-440.0,0.00020581,2]
[364595266,1749155353802,-379.88,0.00020581,2]
[364595267,1749155353823,-440.0,0.00020581,2]
[364595268,1749155353843,-430.0,0.00020581,2]
[364595269,1749155353864,-440.0,0.00020581,2]
[364595270,1749155353885,-440.0,0.00020581,2]
[364595271,1749155353906,-440.0,0.00020581,2]
[364595272,1749155353926,-500.0,0.00020582,2]
[364595273,1749155353949,-500.0,0.00020733,2]
[364595274,1749155353969,-211.69068759,0.00020733,2]
[364595275,1749155353989,-197.0,0.00020786,2]
[364595276,1749155354010,-157.88,0.00020845,3]
[364595277,1749155354031,-440.0,0.00020855,2]
[364595278,1749155354054,-420.0,0.00020855,2]
[364595279,1749155354083,-440.0,0.00020855,2]
[364595280,1749155354103,-440.0,0.00020855,2]
[364595281,1749155354123,-420.0,0.00020855,2]
[364595282,1749155354144,-461.09075428,0.00020855,2]
[364595283,1749155354165,-420.0,0.00020855,2]
[364595284,1749155354189,-420.0,0.00020855,2]
[364595285,1749155354210,-440.0,0.00020855,2]
[364595286,1749155354231,-420.0,0.00020855,2]
[364595287,1749155354251,-420.0,0.00020855,2]
[364595288,1749155354273,-420.0,0.00020855,2]
[364595289,1749155354294,-321.93827581,0.00020855,2]
[364595290,1749155354314,-527.30722969,0.00020855,2]
[364595291,1749155354335,-420.0,0.00020855,2]
[364595292,1749155354358,-440.0,0.00020855,2]
[364595293,1749155354379,-440.0,0.00020855,2]
[364595294,1749155354401,-440.0,0.00020855,2]
[364595295,1749155354422,-420.0,0.00020855,2]
[364595296,1749155354448,-239.48136037,0.00020855,2]
[364595297,1749155354468,-420.0,0.00020855,2]
[364595298,1749155354490,-259.04781292,0.00020855,2]
[364595299,1749155354510,-420.0,0.00020855,2]
[364595300,1749155354532,-197.59421053,0.00020855,2]
[364595301,1749155354553,-440.0,0.00020855,2]
[364595302,1749155354574,-440.0,0.00020855,2]
[364595303,1749155354595,-480.48619459,0.00020855,2]
[364595304,1749155354616,-440.0,0.00020855,2]
[364595305,1749155354637,-440.0,0.00020855,2]
[364595306,1749155354658,-440.0,0.00020855,2]
[364595307,1749155354680,-440.0,0.00020855,2]
[364595308,1749155354700,-440.0,0.00020855,2]
[364595309,1749155354721,-250.47288694,0.00020855,2]
[364595310,1749155354742,-413.19832708,0.00020855,2]
[364595311,1749155354763,-440.0,0.00020855,2]
[364595312,1749155354783,-205.41683742,0.00020855,2]
[364595313,1749155354804,-440.0,0.00020855,2]
[364595314,1749155354824,-440.0,0.00020855,2]
[364595315,1749155354845,-440.0,0.00020855,2]
[364595316,1749155354865,-440.0,0.00020855,2]
[364595317,1749155354886,-420.0,0.00020855,2]
[364595318,1749155354906,-350.0,0.00020855,2]
[364595319,1749155354926,-440.0,0.00020855,2]
[364595320,1749155354949,-440.0,0.00020855,2]
[364595321,1749155354968,-460.2837575,0.00020855,2]
[364595322,1749155354990,-380.0,0.00020855,2]
[364595323,1749155355011,-440.0,0.00020855,2]
[364595324,1749155355034,-440.0,0.00020855,2]
[364595325,1749155355057,-357.14965469,0.00020855,2]
[364595326,1749155355078,-440.0,0.00020855,2]
[364595327,1749155355099,-440.0,0.00020855,2]
[364595328,1749155355119,-582.62763877,0.00020855,2]
[364595329,1749155355140,-440.0,0.00020855,2]
[364595330,1749155355161,-440.0,0.00020855,2]
[364595331,1749155355187,-440.0,0.00020855,2]
[364595332,1749155355208,-440.0,0.00020855,2]
[364595333,1749155355230,-78.14596748,0.00020855,2]
[364595340,1749155368141,-160.0,0.00020033,2]
[364595341,1749155368162,-962.69,0.00020571,10]
[364595342,1749155368184,-210.60580598,0.00020571,10]
[364595419,1749155437113,-331.99606633,0.00020571,10]
[364595422,1749155437126,-132.26393367,0.00020571,10]
[364595424,1749155437136,-689.77,0.00020571,10]
[364595426,1749155437146,-85.96606633,0.00020571,10]
[364595428,1749155437158,-488.83393367,0.00020571,10]
[364595430,1749155437169,-300.0,0.0002058,2]
[364595432,1749155437179,-287.0,0.0002058,2]
[364595434,1749155437189,-345.0,0.0002058,2]
[364595435,1749155437199,-440.0,0.00020581,2]
[364595437,1749155437208,-440.0,0.00020581,2]
[364595439,1749155437218,-440.0,0.00020581,2]
[364595441,1749155437228,-440.0,0.00020581,2]
[364595443,1749155437238,-440.0,0.00020581,2]
[364595445,1749155437251,-66.76828482,0.00020581,2]
[364595447,1749155437263,-373.23171518,0.00020581,2]
[364595449,1749155437273,-430.0,0.00020581,2]
[364595451,1749155437283,-440.0,0.00020581,2]
[364595453,1749155437293,-440.0,0.00020581,2]
[364595455,1749155437303,-440.0,0.00020581,2]
[364595457,1749155437312,-440.0,0.00020581,2]